{"text_format":"2","workbook":"xlsx","n_sheets":4,"sheets":["Főösszesítő","Munkanem összesítő","54.Közmű csővezetékek és szere","82.Épületgépészeti szerelvénye"],"not_rendered":{"charts":0,"images":0,"macros":0,"external_links":0,"defined_names":0,"comments":0,"pivot_tables":0},"unopened":[],"bounds":{"document_bytes":16777216,"sheet_cells":100000,"run_cost":"one","rows_first":2000,"rows_last":500,"rows_between":2000,"halvings":0,"cell_chars":16384,"cell_head_chars":4096},"cells_cut":0,"cells_raw":0,"read":"whole","date_system":"1900"}

{"sheet":"Főösszesítő","index":0,"n_rows":8,"n_cols":4,"rows_kept":8,"cut":false,"hidden":false,"merged":[[0,0,0,3],[2,0,2,3],[5,2,5,3],[6,2,6,3],[7,2,7,3]]}
["Ajánlattevő neve és székhelye:"]
[]
["Költségvetés főösszesítő"]
["Megnevezés",null,"Anyagköltség","Díjköltség"]
["1 Építmény közvetlen költségei",null,{"$f":"'Munkanem összesítő'!C4","v":0},{"$f":"'Munkanem összesítő'!D4","v":0}]
["2.1 ÁFA vetítési alap",null,{"$f":"ROUND(C5+D5,0)","v":0}]
["2.2 ÁFA",0.27,{"$f":"ROUND(C6*B7,0)","v":0}]
["3 A munka ára (HUF)",null,{"$f":"ROUND(C7+C6,0)","v":0}]

{"sheet":"Munkanem összesítő","index":1,"n_rows":4,"n_cols":4,"rows_kept":4,"cut":false,"hidden":false,"merged":[]}
["Ssz.","Megnevezés","Anyagköltség","Díjköltség"]
["54","Közmű csővezetékek és szerelvények szerelése",{"$f":"'54.Közmű csővezetékek és szere'!H3","v":0},{"$f":"'54.Közmű csővezetékek és szere'!I3","v":0}]
["82","Épületgépészeti szerelvények és berendezések szerelése",{"$f":"'82.Épületgépészeti szerelvénye'!H23","v":0},{"$f":"'82.Épületgépészeti szerelvénye'!I23","v":0}]
[null,"Összesen (HUF)",{"$f":"ROUND(SUM(C2:C3),0)","v":0},{"$f":"ROUND(SUM(D2:D3),0)","v":0}]

{"sheet":"54.Közmű csővezetékek és szere","index":2,"n_rows":3,"n_cols":9,"rows_kept":3,"cut":false,"hidden":false,"merged":[]}
["Ssz.","Tételszám","Tétel szövege","Menny.","Egység","Anyag egységár","Díj egységre","Anyag összesen","Díj összesen"]
[1,"54-016-5.1","Gázvezeték szakaszos és hálózati tömörségi nyomáspróbája, mért oldali nyomáspróba.",1,"egység",0,0,{"$f":"ROUND(F2*D2,0)","v":0},{"$f":"ROUND(G2*D2,0)","v":0}]
[null,null,"Munkanem összesen (HUF)",{"$nulls":4},{"$f":"ROUND(SUM(H2:H2),0)","v":0},{"$f":"ROUND(SUM(I2:I2),0)","v":0}]

{"sheet":"82.Épületgépészeti szerelvénye","index":3,"n_rows":23,"n_cols":10,"rows_kept":23,"cut":false,"hidden":false,"merged":[]}
["Ssz.","Tételszám","Tétel szövege","Menny.","Egység","Anyag egységár","Díj egységre","Anyag összesen","Díj összesen","Megjegyzés"]
[1,null,"BOSCH CONDENS 2300W GC2300IW 24/30 C 23 FALI KOND. KOMBI KAZÁN 24 kW gázkazán beszerelése",1,"db",0,0,{"$f":"ROUND(F2*D2,0)","v":0},{"$f":"ROUND(G2*D2,0)","v":0}]
[2,null,"Bosch indító idom 80/125 PPs/Alu",1,"db",0,0,0,0]
[3,null,"Bosch egyenes ellenőrző idom 80/125 PPs/Alu",1,"db",0,0,0,0]
[4,null,"Bosch füstcső 1m 80/125 PPs/Alu",1,"db",0,0,0,0]
[5,null,"Bosch 90° könyök idom 80/125 PPs/Alu",1,"db",0,0,0,0]
[6,null,"Bosch öntartó könyök 80 PPs",1,"db",0,0,0,0]
[7,null,"Bosch flexibilis cső 80 PPs",13,"m",0,0,0,0]
[8,null,"Bosch központosító elem 80",4,"db",0,0,0,0]
[9,null,"Bosch tetőkivezetés 80 PPs",1,"db",0,0,0,0]
[10,null,"iszapleválasztó Fernox TF1",1,"db",0,0,0,0]
[11,null,"szerelvénysor (1 db DN20 gázhálózatba építhető zártházas elzáró szerelvényt, 1 db DN 20 ivóvíz hálózatba építhető elzáró szerelvényt illetve 1db DN20 gázhálózatba építhető nem éghető anyagú flexibilis csövet)",1,"db",0,0,{"$f":"ROUND(F12*D12,0)","v":0},{"$f":"ROUND(G12*D12,0)","v":0}]
[12,null,"Beüzemelés",1,"db",0,0,0,0]
[13,null,"Kéményvizsgálat",1,"db",0,0,0,0]
[14,null,"Egyszerűsített készülékcsere ügyintézés a szolgáltató felé",1,"db",0,0,0,0]
[15,null,"Kiszállás",2,"db",0,0,0,0]
[16,null,"Kondenzvíz szivattyú beépítése, kondenzvíz bekötése szennyvíz hálózatba (Wilo Plavis 013C)",1,"db",0,0,0,0]
[17,null,"Fűtési rendszer átmosása",1,"db",0,0,0,0]
[18,null,"Elektromos szerelés, szerelési nyilatkozat",1,"db",0,0,0,0]
[19,null,"EV mérési jegyzőkönyv",1,"db",0,0,{"$f":"ROUND(F20*D20,0)","v":0},{"$f":"ROUND(G20*D20,0)","v":0}]
[20,null,"A hőtermelők, csövek, szerelvények bontása és elszállítása ",1,"db",0,0,{"$f":"ROUND(F21*D21,0)","v":0},{"$f":"ROUND(G21*D21,0)","v":0}]
[21,null,"Tetőkibúvó és épített kéménybe 20x20 cm szellőzőrács beépítése ",1,"db",0,0,{"$f":"ROUND(F22*D22,0)","v":0},{"$f":"ROUND(G22*D22,0)","v":0}]
[null,null,"Munkanem összesen (HUF)",{"$nulls":4},{"$f":"ROUND(SUM(H2:H22),0)","v":0},{"$f":"ROUND(SUM(I2:I22),0)","v":0}]